Cogmind - Beta 13 @@@ ROGUE MODE // 2024.05.03 @ 22:37:19 Player: Gabe+Kate4EVR Result: Destroyed by S-43 Plague with Heavy Machine Gun Performance ------------- Evolutions (7) 3500 Regions Visited (13) 2600 Robots Destroyed (16) 80 Value Destroyed (390) 390 Prototype IDs (3) 60 Alien Tech Used (0) 0 Bonus (1237) 1237 TOTAL SCORE: 7867 Bonus ------- Pacifist 200 Follower Combat Kills 37 Entered DSFs 1000 Cogmind --------- Core Integrity 0/1300 Matter 111/300 Energy 100/100 System Corruption 0% Temperature Cool (1) Movement Flying (40) Location -3/Research Parts ------- > --- POWER (2) -------- (None) > --- PROPULSION (10) -- Xenon Bombardment Thruster > --- UTILITY (7) ------ (None) > --- WEAPON (2) ------- (None) > --- INVENTORY (5) ---- Light Particle Reactor Myomer Leg Myomer Leg Hacking Suite Hacking Suite Peak State ------------ > --- POWER ------------ Micro Nuclear Core Light Fission Core > --- PROPULSION ------- Medium Armored Exoskeleton Myomer Leg Myomer Leg Myomer Leg Myomer Leg Myomer Leg Myomer Leg Myomer Leg > --- UTILITY ---------- Advanced Weight Redist. System Hacking Suite > --- WEAPON ----------- (None) > --- INVENTORY -------- Improved Propulsion Shielding Particle Gun Magnetic Acceleration Cannon [Rating: 83] Favorites ----------- Power Micro Nuclear Core Engine Ion Engine Power Core Micro Nuclear Core Propulsion VTOL Module Leg Myomer Leg Hover Unit Improved Gravmag System Flight Unit VTOL Module Utility Small Storage Unit Device Advanced Weight Redist. System Storage Small Storage Unit Processor Targeting Computer Hackware Hacking Suite Protection Improved Propulsion Shielding Weapon Particle Gun Energy Gun Particle Gun Energy Cannon Light EM Pulse Cannon Ballistic Gun Assault Rifle Ballistic Cannon Compact Mass Driver Launcher Long-range Missile Launcher Build | -11 -10 -9 -8 -7 -7 -6 -6 -6 -5 -5 -4 -4 -3 ------- Run | Yrd Mat Mat Mat Fac DSF Fac Low Low Fac Ext Fac DSF Res Slots Evolved 14 | . . 2 2 2 . 2 . . 2 . 2 . 2 Power 1 | . . . . . . 1 . . . . . . . Propulsion 8 | . . 2 2 2 . 1 . . 1 . . . . Utility 5 | . . . . . . . . . 1 . 2 . 2 Weapon . | . . . . . . . . . . . . . . Parts Attached 65 | 7 3 18 4 . 1 6 6 . 5 . . 11 4 Power 13 | 2 . 1 2 . 1 3 . . 1 . . 3 . Engine 4 | 2 . 1 1 . . . . . . . . . . Core 9 | . . . 1 . 1 3 . . 1 . . 3 . Reactor . | . . . . . . . . . . . . . . Propulsion 30 | 2 2 12 2 . . 1 . . 2 . . 8 1 Treads . | . . . . . . . . . . . . . . Leg 10 | 2 . . . . . . . . . . . 8 . Wheel . | . . . . . . . . . . . . . . Hover 2 | . . . . . . . . . 2 . . . . Flight 18 | . 2 12 2 . . 1 . . . . . . 1 Utility 8 | 1 1 1 . . . . 1 . 2 . . . 2 Device 2 | . . . . . . . . . 2 . . . . Storage 1 | 1 . . . . . . . . . . . . . Processor 1 | . 1 . . . . . . . . . . . . Hackware 2 | . . . . . . . 1 . . . . . 1 Protection 2 | . . 1 . . . . . . . . . . 1 Artifact . | . . . . . . . . . . . . . . Weapon 14 | 2 . 4 . . . 2 5 . . . . . 1 Energy Gun 6 | 1 . 2 . . . 2 1 . . . . . . Energy Cannon 1 | . . 1 . . . . . . . . . . . Ballistic Gun 3 | 1 . 1 . . . . 1 . . . . . . Ballistic Cannon 2 | . . . . . . . 1 . . . . . 1 Launcher 2 | . . . . . . . 2 . . . . . . Special Weapon . | . . . . . . . . . . . . . . Impact Weapon . | . . . . . . . . . . . . . . Slashing Weapon . | . . . . . . . . . . . . . . Piercing Weapon . | . . . . . . . . . . . . . . Special Melee Weapon . | . . . . . . . . . . . . . . Unidentified Prototypes 3 | . . 1 . . . 1 . . . . . . 1 Parts Lost 40 | . . 6 . . 1 10 3 . 4 4 . 2 10 Power 8 | . . 1 . . . 2 . . 2 . . 2 1 Propulsion 17 | . . 4 . . 1 5 1 . . 2 . . 4 Utility 8 | . . . . . . 1 1 . 1 1 . . 4 Weapon 7 | . . 1 . . . 2 1 . 1 1 . . 1 Highest Loss Streak 8 | . . 6 . . 1 8 3 . 2 4 . 1 8 To Critical Strikes . | . . . . . . . . . . . . . . Average Slot Usage (%) 52 | . 96 92 96 . 78 60 16 6 24 39 15 46 27 Engine 3 | . 14 8 6 . 1 . . . 3 . . . . Core 2 | . . . 1 . 5 11 . . . 5 5 6 2 Leg 6 | . 15 . . . . . . . . . . 28 12 Flight 15 | . 10 41 52 . 40 33 3 . . . . . . Device 1 | . . . . . . . . . 3 11 5 5 2 Storage 4 | . 14 11 9 . 7 6 3 . . . . . . Processor 2 | . 12 9 . . . . . . . . . . . Hackware 2 | . . . . . . . 3 6 5 5 5 5 4 Protection 1 | . . 1 9 . 7 4 . . 2 . . . . Energy Gun 5 | . 14 15 9 . 7 3 2 . 4 5 . . . Energy Cannon 1 | . . 2 9 . 7 . . . . . . . . Ballistic Gun 1 | . 14 2 . . . . . . . . . . . Naked Turns 5 | . . . . . . . . . . . . . 5 Heaviest Build 26 | 14 14 17 21 19 20 26 6 . 8 8 6 13 19 Greatest Support 225 | 20 20 19 27 23 23 27 5 3 21 21 3 225 150 Greatest Overweight (x) 4 | . 4 1 . . . 2 1 . . 2 1 1 1 Average Overweight (x) . | . . . . . . . . . . . 1 . . Largest Inventory Capacity 8 | 8 8 8 8 8 8 8 8 5 5 5 5 5 5 Average Capacity 6 | 7 8 8 8 8 8 8 6 5 5 5 5 5 5 Most Carried 8 | 6 8 8 8 8 8 8 8 5 5 3 3 5 5 Average Carried 5 | 3 7 6 7 8 7 5 6 4 4 3 3 3 4 Final Capacity 8 | 8 8 8 8 8 8 8 5 5 5 5 5 5 5 Final Carried 8 | 6 8 8 8 8 8 8 4 5 3 3 3 5 5 Class Distribution -------------------- 67% | Mutant 27% | Sprinter 4% | Hacker-Mutant Dominant Class ---------------- Mutant | -10/Materials Sprinter | -9/Materials Sprinter | -8/Materials Sprinter | -7/Factory Sprinter | -7/DSF Sprinter | -6/Factory Mutant | -6/Lower Caves Mutant | -6/Lower Caves Mutant | -5/Factory Mutant | -5/Extension Mutant | -4/Factory Mutant | -4/DSF Mutant | -3/Research Resources | -11 -10 -9 -8 -7 -7 -6 -6 -6 -5 -5 -4 -4 -3 ----------- Run | Yrd Mat Mat Mat Fac DSF Fac Low Low Fac Ext Fac DSF Res Matter Collected 644 | 239 . 91 . . . . 82 . . 5 . 31 196 Remotely . | . . . . . . . . . . . . . . Salvage Created 286 | . . 205 . . . . 29 . . . . . 52 Parts 13 | . . 8 . . . . 1 . . . . . 4 Haulers Intercepted . | . . . . . . . . . . . . . . Recyclers Shooed 1 | . . . . . . . . . . . . . 1 Parts Field Recycled . | . . . . . . . . . . . . . . Retrieved Matter . | . . . . . . . . . . . . . . Parts Self-Destructed 3 | . . . . . . . 3 . . . . . . Prevented . | . . . . . . . . . . . . . . Kills | -11 -10 -9 -8 -7 -7 -6 -6 -6 -5 -5 -4 -4 -3 ------- Run | Yrd Mat Mat Mat Fac DSF Fac Low Low Fac Ext Fac DSF Res Combat Hostiles Destroyed 16 | . . 10 . . . . 3 . . . . . 3 Guns 11 | . . 10 . . . . 1 . . . . . . Cannons 3 | . . . . . . . . . . . . . 3 AOE 2 | . . . . . . . 2 . . . . . . Classes Destroyed 2 | . . 2 . . . . . . . . . . . Swarmer 14 | . . 8 . . . . 3 . . . . . 3 Sentry 2 | . . 2 . . . . . . . . . . . Best Kill Streak 6 | . . 6 . . . . 3 . . . . . 1 Combat Bots Only 6 | . . 6 . . . . 3 . . . . . 1 Max Kills in Single Turn 2 | . . 2 . . . . 2 . . . . . 1 Gunslinging 1 | . . 1 . . . . . . . . . . . Exploded 2 | . . . . . . . 2 . . . . . . Melee . | . . . . . . . . . . . . . . Uniques/NPCs Destroyed . | . . . . . . . . . . . . . . Combat | -11 -10 -9 -8 -7 -7 -6 -6 -6 -5 -5 -4 -4 -3 -------- Run | Yrd Mat Mat Mat Fac DSF Fac Low Low Fac Ext Fac DSF Res Hostile Shots Fired 561 | . 18 59 8 . 15 112 10 5 24 31 . 53 226 Missed 203 | . 3 15 6 . 9 42 7 1 12 11 . 18 79 Damage Taken 6956 | . 190 499 26 . 239 858 101 77 328 527 . 700 3411 Core 2665 | . 54 178 . . 107 275 24 59 126 405 . 116 1321 Absorbed by Shields 29 | . . . . . 29 . . . . . . . . Redirected to Shielding 106 | . . . 9 . 62 35 . . . . . . . Core Remaining (%) 76 | 100 78 55 100 . 84 . . 57 . 46 . 89 . Volleys Fired 56 | . 1 22 1 . . 8 5 . . . . . 19 Largest 2 | . 2 2 1 . . 2 1 . . . . . 1 Hottest 130 | . 70 130 56 . . 130 65 . . . . . 66 Shots Fired 78 | . 2 39 1 . . 12 5 . . . . . 19 Gun 56 | . 2 39 . . . 12 3 . . . . . . Cannon 20 | . . . 1 . . . . . . . . . 19 Launcher 2 | . . . . . . . 2 . . . . . . Special . | . . . . . . . . . . . . . . Kinetic 29 | . 1 9 . . . . . . . . . . 19 Thermal 46 | . 1 30 . . . 12 3 . . . . . . Explosive 2 | . . . . . . . 2 . . . . . . Electromagnetic 1 | . . . 1 . . . . . . . . . . Robot Hit Streak 12 | . 1 12 . . . 1 3 . . . . . 4 Robot Miss Streak 4 | . 1 4 1 . . 3 1 . . . . . 4 Penetration Max . | . . . . . . . . . . . . . . Secondary Targets 1 | . . 1 . . . . . . . . . . . Max Gunslinging Chain 1 | . . 1 . . . . . . . . . . . Shots Hit Robots 42 | . 1 24 . . . 4 4 . . . . . 9 Core Hits 22 | . . 12 . . . 1 4 . . . . . 5 Critical Kills . | . . . . . . . . . . . . . . Critical Parts Destroyed . | . . . . . . . . . . . . . . Critical Strikes 1 | . . 1 . . . . . . . . . . . Burn 1 | . . 1 . . . . . . . . . . . Melee Attacks . | . . . . . . . . . . . . . . Impact . | . . . . . . . . . . . . . . Slashing . | . . . . . . . . . . . . . . Piercing . | . . . . . . . . . . . . . . Sneak Attacks . | . . . . . . . . . . . . . . Combat Hostiles . | . . . . . . . . . . . . . . Follow-up Attacks . | . . . . . . . . . . . . . . Damage Inflicted 1224 | . 10 398 . . . 76 276 . 2 . . . 462 Guns 536 | . 10 398 . . . 76 52 . . . . . . Cannons 426 | . . . . . . . . . . . . . 426 Explosions 224 | . . . . . . . 224 . . . . . . Melee . | . . . . . . . . . . . . . . Ramming 38 | . . . . . . . . . 2 . . . 36 Kinetic 526 | . 10 90 . . . . . . . . . . 426 Thermal 436 | . . 308 . . . 76 52 . . . . . . Explosive 224 | . . . . . . . 224 . . . . . . Electromagnetic . | . . . . . . . . . . . . . . Impact . | . . . . . . . . . . . . . . Slashing . | . . . . . . . . . . . . . . Piercing . | . . . . . . . . . . . . . . Highest Corruption 1 | . . . . . . . . . 1 1 . 1 . Average Corruption 1 | . . . . . . . . . 1 1 . 1 . Corruption Purged . | . . . . . . . . . . . . . . Corruption Blocked . | . . . . . . . . . . . . . . Overload Shots . | . . . . . . . . . . . . . . Overflow Damage 108 | . . . . . . . 69 . . . . . 39 Projectiles 30 | . . . . . . . . . . . . . 30 Explosions 69 | . . . . . . . 69 . . . . . . Melee 9 | . . . . . . . . . . . . . 9 Knockbacks 2 | . . . . . . . . . . . . . 2 Impact . | . . . . . . . . . . . . . . Kinetic 2 | . . . . . . . . . . . . . 2 Secondary . | . . . . . . . . . . . . . . Self-Inflicted Damage 62 | . . . . . . . 58 . 1 . . . 3 Shots 1 | . . . . . . . 1 . . . . . . Rammed 3 | . . . . . . . . . 1 . . . 2 Targets Rammed 13 | . . . . . . . . . 1 . . . 12 Kicked 10 | . . . . . . . . . . . . . 10 Crushed . | . . . . . . . . . . . . . . Highest Temperature 545 | . 24 545 116 . . 485 . . . . . . 3 Average Temperature 206 | . 16 213 33 . . 262 . . . . . . 3 Received Heat Transfer 606 | . 60 72 9 . . 150 . 36 72 72 . . 135 Effects 17 | . . 4 . . . 13 . . . . . . . Shutdowns 8 | . . 1 . . . 7 . . . . . . . Energy Bleed 6 | . . 2 . . . 4 . . . . . . . Short Circuit 2 | . . . . . . 2 . . . . . . . Damage (core) 1 | . . 1 . . . . . . . . . . . Siege Activations . | . . . . . . . . . . . . . . Robots Corrupted . | . . . . . . . . . . . . . . Combat Hostiles . | . . . . . . . . . . . . . . Parts Fried . | . . . . . . . . . . . . . . Impact Corruptions 1 | . . . . . . . . . . . . . 1 Robots Melted . | . . . . . . . . . . . . . . Combat Hostiles . | . . . . . . . . . . . . . . Parts Melted 3 | . . 3 . . . . . . . . . . . Heat Transferred 1110 | . . 814 . . . 185 111 . . . . . . Parts Sabotaged . | . . . . . . . . . . . . . . Parts Stolen . | . . . . . . . . . . . . . . Parts Stripped . | . . . . . . . . . . . . . . Power Chain Reactions . | . . . . . . . . . . . . . . Alert | -11 -10 -9 -8 -7 -7 -6 -6 -6 -5 -5 -4 -4 -3 ------- Run | Yrd Mat Mat Mat Fac DSF Fac Low Low Fac Ext Fac DSF Res Peak Influence 239 | . 30 239 156 70 57 237 . . 30 24 . 15 207 Initial 100 | . . 12 100 70 52 29 . . 30 4 . 2 2 Average 61 | . 9 156 120 70 48 100 . . 17 6 . 7 89 Maximum Alert Level 1 | . . 1 . . . 1 . . . . . . 1 Low Security (%) 91 | 100 100 57 100 100 100 83 . . 100 100 100 100 97 Level 1 8 | . . 42 . . . 16 . . . . . . 2 Level 2 . | . . . . . . . . . . . . . . Level 3 . | . . . . . . . . . . . . . . Level 4 . | . . . . . . . . . . . . . . Level 5 . | . . . . . . . . . . . . . . High Security . | . . . . . . . . . . . . . . Max Security . | . . . . . . . . . . . . . . Squads Dispatched 4 | . . . . . . 2 . . 1 . . 1 . Investigation 2 | . . . . . . 1 . . 1 . . . . Extermination . | . . . . . . . . . . . . . . Reinforcement 1 | . . . . . . . . . . . . 1 . Assault . | . . . . . . . . . . . . . . Garrison 1 | . . . . . . 1 . . . . . . . Intercept . | . . . . . . . . . . . . . . Searches Triggered . | . . . . . . . . . . . . . . Construction Impeded . | . . . . . . . . . . . . . . Haulers Reinforced . | . . . . . . . . . . . . . . Active Scanning Responses . | . . . . . . . . . . . . . . Cargo Convoy Interrupts . | . . . . . . . . . . . . . . Stealth | -11 -10 -9 -8 -7 -7 -6 -6 -6 -5 -5 -4 -4 -3 --------- Run | Yrd Mat Mat Mat Fac DSF Fac Low Low Fac Ext Fac DSF Res Distress Signals 5 | . 1 . . . . 2 . . 1 . . . 1 Communications Jammed . | . . . . . . . . . . . . . . Distress Signals . | . . . . . . . . . . . . . . Times Spotted 98 | . 8 12 7 . 2 20 3 4 8 4 . 6 24 Peak Tracking Total 12 | . 7 9 6 . 2 12 3 4 4 5 . 5 12 Tactical Retreats 12 | . . . . . 1 3 . . 2 . . 1 5 Traps | -11 -10 -9 -8 -7 -7 -6 -6 -6 -5 -5 -4 -4 -3 ------- Run | Yrd Mat Mat Mat Fac DSF Fac Low Low Fac Ext Fac DSF Res Traps Triggered 7 | . 1 . . . 4 1 . . . . . 1 . Indirectly . | . . . . . . . . . . . . . . Trap Hack Attempts . | . . . . . . . . . . . . . . Triggered . | . . . . . . . . . . . . . . Disarmed . | . . . . . . . . . . . . . . Reprogrammed . | . . . . . . . . . . . . . . Reused . | . . . . . . . . . . . . . . Traps Extracted . | . . . . . . . . . . . . . . Installed . | . . . . . . . . . . . . . . Triggered . | . . . . . . . . . . . . . . Machines | -11 -10 -9 -8 -7 -7 -6 -6 -6 -5 -5 -4 -4 -3 ---------- Run | Yrd Mat Mat Mat Fac DSF Fac Low Low Fac Ext Fac DSF Res Machines Disabled 1 | . . . . . . 1 . . . . . . . Max in Single Turn . | . . . . . . . . . . . . . . Machines Repaired . | . . . . . . . . . . . . . . Machines Dismantled . | . . . . . . . . . . . . . . Machines Sabotaged . | . . . . . . . . . . . . . . Overloaded Fab Kills . | . . . . . . . . . . . . . . Hacking | -11 -10 -9 -8 -7 -7 -6 -6 -6 -5 -5 -4 -4 -3 --------- Run | Yrd Mat Mat Mat Fac DSF Fac Low Low Fac Ext Fac DSF Res Machines Accessed 12 | . . . 1 1 . 4 . . 4 1 1 . . Terminals 10 | . . . 1 1 . 4 . . 2 1 1 . . Fabricators 1 | . . . . . . . . . 1 . . . . Repair Stations 1 | . . . . . . . . . 1 . . . . Recycling Units . | . . . . . . . . . . . . . . Scanalyzers . | . . . . . . . . . . . . . . Garrison Access . | . . . . . . . . . . . . . . Total Hacks 17 | . . . 1 1 . 5 . . 8 1 1 . . Successful 10 | . . . 1 1 . 2 . . 4 1 1 . . Failed 7 | . . . . . . 3 . . 4 . . . . Catastrophic . | . . . . . . . . . . . . . . Database Lockouts . | . . . . . . . . . . . . . . Manual 4 | . . . 1 . . 2 . . 1 . . . . Terminals 11 | . . . 1 1 . 5 . . 2 1 1 . . Fabricators 2 | . . . . . . . . . 2 . . . . Repair Stations 4 | . . . . . . . . . 4 . . . . Recycling Units . | . . . . . . . . . . . . . . Scanalyzers . | . . . . . . . . . . . . . . Garrison Access . | . . . . . . . . . . . . . . Terminal Hacks 7 | . . . . 1 . 2 . . 2 1 1 . . Open Door 2 | . . . . . . . . . 1 1 . . . Open DSF 3 | . . . . 1 . 1 . . . . 1 . . Unreport Threat 2 | . . . . . . 1 . . 1 . . . . Fabricator Hacks . | . . . . . . . . . . . . . . Repair Station Hacks 2 | . . . . . . . . . 2 . . . . Scan Component 1 | . . . . . . . . . 1 . . . . Refit 1 | . . . . . . . . . 1 . . . . Recycling Unit Hacks . | . . . . . . . . . . . . . . Scanalyzer . | . . . . . . . . . . . . . . Garrison Access Hacks . | . . . . . . . . . . . . . . Unauthorized Hacks 1 | . . . 1 . . . . . . . . . . Terminals 1 | . . . 1 . . . . . . . . . . Assimilate 1 | . . . 1 . . . . . . . . . . Fabricators . | . . . . . . . . . . . . . . Repair Stations . | . . . . . . . . . . . . . . Recycling Units . | . . . . . . . . . . . . . . Scanalyzers . | . . . . . . . . . . . . . . Garrison Access . | . . . . . . . . . . . . . . Data Cores Recovered . | . . . . . . . . . . . . . . Used . | . . . . . . . . . . . . . . Hacking Detections 4 | . . . . . . 1 . . 2 1 . . . Full Trace Events 2 | . . . . . . 1 . . 1 . . . . Feedback Events . | . . . . . . . . . . . . . . Feedback Blocked . | . . . . . . . . . . . . . . Robot Schematics Acquired . | . . . . . . . . . . . . . . Robots Built . | . . . . . . . . . . . . . . Authchips . | . . . . . . . . . . . . . . Time . | . . . . . . . . . . . . . . Total Robot Build Rating . | . . . . . . . . . . . . . . Part Schematics Acquired . | . . . . . . . . . . . . . . Parts Built . | . . . . . . . . . . . . . . Authchips . | . . . . . . . . . . . . . . Time . | . . . . . . . . . . . . . . Total Part Build Rating . | . . . . . . . . . . . . . . Parts Repaired . | . . . . . . . . . . . . . . Time . | . . . . . . . . . . . . . . Parts Recycled . | . . . . . . . . . . . . . . Recycled Matter . | . . . . . . . . . . . . . . Retrieved Matter . | . . . . . . . . . . . . . . Retrieved Components . | . . . . . . . . . . . . . . Parts Scanalyzed . | . . . . . . . . . . . . . . Part Schematics Acquired . | . . . . . . . . . . . . . . Parts Damaged . | . . . . . . . . . . . . . . Bothacking | -11 -10 -9 -8 -7 -7 -6 -6 -6 -5 -5 -4 -4 -3 ------------ Run | Yrd Mat Mat Mat Fac DSF Fac Low Low Fac Ext Fac DSF Res Used RIF Installer . | . . . . . . . . . . . . . . Robots Hacked . | . . . . . . . . . . . . . . Non-combat . | . . . . . . . . . . . . . . Combat . | . . . . . . . . . . . . . . Robot Hacks Applied . | . . . . . . . . . . . . . . Relay Couplers Released . | . . . . . . . . . . . . . . Fabnet Peak Effective % . | . . . . . . . . . . . . . . Robots Rewired 1 | . . . . . . 1 . . . . . . . Allies Hacked . | . . . . . . . . . . . . . . Hacks Repelled . | . . . . . . . . . . . . . . Allies | -11 -10 -9 -8 -7 -7 -6 -6 -6 -5 -5 -4 -4 -3 -------- Run | Yrd Mat Mat Mat Fac DSF Fac Low Low Fac Ext Fac DSF Res Total Allies 2 | . . . 1 . . 1 . . . . . . . Largest Group 1 | . . . 1 . . 1 . . . . . . . Highest-Rated Group 34 | . . . 10 . . 34 . . . . . . . Highest-Rated Ally 34 | . . . 10 . . 34 . . . . . . . Total Orders . | . . . . . . . . . . . . . . Ally Attacks 3 | . . . . . . 3 . . . . . . . Total Damage 359 | . . . . . . 359 . . . . . . . Kills 2 | . . . . . . 2 . . . . . . . Allies Corrupted . | . . . . . . . . . . . . . . Allies Melted . | . . . . . . . . . . . . . . Intel | -11 -10 -9 -8 -7 -7 -6 -6 -6 -5 -5 -4 -4 -3 ------- Run | Yrd Mat Mat Mat Fac DSF Fac Low Low Fac Ext Fac DSF Res Robot Analysis Total . | . . . . . . . . . . . . . . Derelict Logs Recovered 2 | . . . . . . . 2 . . . . . . Drone Launches . | . . . . . . . . . . . . . . Drone Recoveries . | . . . . . . . . . . . . . . Exploration | -11 -10 -9 -8 -7 -7 -6 -6 -6 -5 -5 -4 -4 -3 ------------- Run | Yrd Mat Mat Mat Fac DSF Fac Low Low Fac Ext Fac DSF Res Turns Passed 1434 | 93 132 203 57 2 52 132 131 11 183 57 40 129 212 Spaces Moved 1984 | 68 94 243 173 7 111 343 253 18 275 94 41 79 185 Core 374 | 5 1 . . . . . 53 18 228 7 41 5 16 Treads . | . . . . . . . . . . . . . . Legs 275 | 63 58 . . . . . . . . . . 74 80 Wheels . | . . . . . . . . . . . . . . Hover 134 | . . . . . . . . . 47 87 . . . Flight 1201 | . 35 243 173 7 111 343 200 . . . . . 89 Fastest Speed 20 | 50 112 26 20 23 23 20 35 50 50 56 100 100 40 Average Speed 50 | 114 120 27 21 23 23 22 44 50 52 61 100 120 79 Slowest Speed 275 | 120 275 106 23 23 23 175 100 50 76 150 100 124 140 Overloaded Moves . | . . . . . . . . . . . . . . Propulsion Burnouts . | . . . . . . . . . . . . . . Robots Hopped 27 | . . 12 4 . . 11 . . . . . . . Cave-ins Triggered . | . . . . . . . . . . . . . . Exploration Rate (%) 24 | 4 23 27 26 1 95 14 51 7 10 22 2 57 9 Regions Visited 13 Branch Regions 3 Pre-discovered Areas . | . . . . . . . . . . . . . . Known Exits Taken 3 | . . . . 1 . . . . . 1 1 . . Unknown Exits Taken 8 | 1 1 1 1 . . 1 1 1 1 . . . . Scrap Searched 1 | . . . . . . . 1 . . . . . . Spaces Dug . | . . . . . . . . . . . . . . Terrain Destroyed 38 | . . . . . . . 26 . . . . . 12 Melee . | . . . . . . . . . . . . . . Projectile 12 | . . . . . . . . . . . . . 12 AOE 26 | . . . . . . . 26 . . . . . . Terrain Rammed . | . . . . . . . . . . . . . . Walls Destroyed . | . . . . . . . . . . . . . . Machines Disabled . | . . . . . . . . . . . . . . Actions | -11 -10 -9 -8 -7 -7 -6 -6 -6 -5 -5 -4 -4 -3 --------- Run | Yrd Mat Mat Mat Fac DSF Fac Low Low Fac Ext Fac DSF Res Total 2294 | 79 113 328 185 6 137 375 266 20 313 93 40 113 226 Wait 109 | . . 43 11 . . 15 . . 27 . . 9 4 Move 1922 | 67 93 220 164 6 110 323 252 17 274 93 40 78 185 Hop 22 | . . 10 4 . . 8 . . . . . . . Pick Up 33 | 5 8 9 . . 2 . . . 2 . . 6 1 Fast Attach 35 | 6 3 3 1 . 1 2 4 . 3 . . 9 3 Attach 20 | . . 7 2 . . 4 2 . 2 . . 2 1 Detach 13 | . . 2 1 . . 4 1 2 . . . 3 . Swap 11 | 1 . 8 1 . . 1 . . . . . . . Drop 29 | . 8 4 . . 3 . 2 1 4 . . 6 1 Fire 56 | . 1 22 1 . . 8 5 . . . . . 19 Melee . | . . . . . . . . . . . . . . Ram 3 | . . . . . . . . . 1 . . . 2 Kick 10 | . . . . . . . . . . . . . 10 Crush . | . . . . . . . . . . . . . . Escape Stasis 21 | . . . . . 21 . . . . . . . . Rewire 10 | . . . . . . 10 . . . . . . . Trap . | . . . . . . . . . . . . . . Miscellaneous . | . . . . . . . . . . . . . . Route ------- -11/Scrapyard -10/Materials (discovered 2 exits: [*Mat] / [*Min]) -9/Materials (discovered 2 exits: *Mat / [*Min]) -8/Materials -7/Factory -7/DSF -6/Factory (discovered 2 exits: *Fac / [*Low]) -6/Lower Caves -6/Lower Caves -5/Factory (discovered 3 exits: Fac / Upp / *Ext) -5/Extension -4/Factory -4/DSF -3/Research (discovered 1 exit: [*Arm]) History --------- Turn | Location | Event 2 | -11/Scrapyard | Discovered new exit (range 16) 94 | -11/Scrapyard | Entered Materials 124 | -10/Materials | Discovered new exit (range 13) 222 | -10/Materials | Discovered new exit (range 4) 226 | -10/Materials | Entered another Materials area 226 | -9/Materials | Evolved 2 slots: Propulsion x2 231 | -9/Materials | Discovered new exit (range 15) 385 | -9/Materials | Lost 6 parts (1p4n1w) 396 | -9/Materials | Discovered new exit (range 15) 429 | -9/Materials | Entered another Materials area 429 | -8/Materials | Evolved 2 slots: Propulsion x2 484 | -8/Materials | Discovered new exit (range 9) 486 | -8/Materials | Entered Factory 486 | -7/Factory | Evolved 2 slots: Propulsion x2 488 | -7/Factory | Identified exit to DSF 488 | -7/Factory | Entered DSF 510 | -7/DSF | Additional patrols routed to DSF 514 | -7/DSF | Discovered new exit (range 12) 540 | -7/DSF | Entered Factory 540 | -6/Factory | Evolved 2 slots: Power x1, Propulsion x1 559 | -6/Factory | Discovered new exit (range 8) 613 | -6/Factory | Garrison activated, responded to threat 662 | -6/Factory | Discovered new exit (range 6) 672 | -6/Factory | Entered Lower Caves 699 | -6/Lower Caves | Lost 8 parts (2p5n1u) 766 | -6/Lower Caves | Discovered new exit (range 12) 770 | -6/Lower Caves | Learned location of 1 exit from Factory 783 | -6/Lower Caves | Lost 3 parts (1n1u1w) 792 | -6/Lower Caves | Learned 4 Factory zone layouts 803 | -6/Lower Caves | Entered another Lower Caves area 810 | -6/Lower Caves | Discovered new exit (range 8) 814 | -6/Lower Caves | Entered Factory 814 | -5/Factory | Evolved 2 slots: Propulsion x1, Utility x1 815 | -5/Factory | Identified exit to Factory 816 | -5/Factory | Identified exit to Upper Caves 936 | -5/Factory | Build established: Mutant 950 | -5/Factory | Spotted B-75 Beast 995 | -5/Factory | Discovered new exit (range 6) 997 | -5/Factory | Entered Extension 1041 | -5/Extension | Spotted B-75 Beast 1043 | -5/Extension | Spotted B-75 Beast 1052 | -5/Extension | Discovered exit to Factory (range 3) 1054 | -5/Extension | Entered Factory 1054 | -4/Factory | Evolved 2 slots: Utility x2 1083 | -4/Factory | Lost 4 parts (2n1u1w) 1094 | -4/Factory | Identified exit to DSF 1094 | -4/Factory | Entered DSF 1143 | -4/DSF | Additional patrols routed to DSF 1198 | -4/DSF | Discovered new exit (range 16) 1223 | -4/DSF | Entered Research 1223 | -3/Research | Evolved 2 slots: Utility x2 1315 | -3/Research | Discovered new exit (range 10) 1384 | -3/Research | Core integrity fell below 50% 1397 | -3/Research | Core integrity fell below 20% 1424 | -3/Research | Lost 8 parts (1p3n3u1w) 1435 | -3/Research | Destroyed by S-43 Plague with Heavy Machine Gun Last Messages --------------- 01366_ Acquired 5 matter. 01369_ Kicked S-43 Plague out of the way. 01370_ W-44 Eye sends out distress signal. 01370_ Kicked S-43 Plague out of the way. 01373_ S-43 Plague destroyed. 01375_ Acquired 11 matter. 01378_ Dropped Med. Armored Exoskeleton. 01378_ R-10 Processor collects Med. Armored Exoskeleton. 01380_ Slammed into R-10 Processor. 01381_ Hacking Suite destroyed. 01381_ Slammed into R-10 Processor. 01382_ Destroyed Hpw. Tractor Beam. 01388_ R-10 Processor knocked back. 01393_ Com. Mass Driver destroyed. 01396_ R-10 Processor destroyed. 01397_ Acquired 115 matter. 01398_ Acquired Xenon Bombardment Thruster. 01399_ Penetrated by Slug. 01427_ Slug penetrates Dark Matter Chamber. 01432_ Slug penetrates Wall. Map ----- +----------------------------------------------------+ | ?????????????????????????????????????????????????? | | ?????????????????????????????????????????????????? | | ?????????????????????????????????????????????????? | | ?????????????????????????????????????????????????? | | ?????????????????????????????????????????????????? | | ?????????????????????????????????????????????????? | | ?????????????????????????????????????????????????? | | ?????????????????????????????????????????????????? | | ?????????????????????????????????????????????????? | | ?????????????????????????????????????????????????? | | ?????????????????????????????????????????????????? | | ?????????????????????????????????????????????????? | | ?????????????????????????????????????????????????? | | ?????????????????????????????????????????????????? | | ??????##?????????????????????????????????????????? | | ?????## ###########??????????????????????????????? | | ?????# !!!#??????????????????????????????? | | ?????# !!!#??????????????????????????????? | | ?????# !! #??????????????????????????????? | | ?????+ #############??????????????????? | | ?????# # #??????????????????? | | ?????# s #??????????????????? | | ?????# # #??????????????????? | | ?????#! """"""" # #??????????????????? | | ?????# """"""" # #??????????????????? | | ?????# """"""" # @ #??????????????????? | | ?????# s #??????????????????? | | ?????# g #+###### #??????????????????? | | ?????##+######+####??????? #??????????????????? | | ??????# #????# #?????????? #??????????????????? | | ??????# #????# #?????????? #??????????????????? | | ??????# #????# #??????????? #??????????????????? | | ??????# #????# #??????????? #??????????????????? | | ####### ###### ########### #??????????????????? | | #??????????????????? | | #??????????????????? | | +??????????????????? | | #??????????????????? | | ###+###### ########## ? #??????????????????? | | ??????????# #???????????? ???????????????????? | | ???????????# #????????????????????????????????? | | ???????????# #????????????????????????????????? | | ???????????# #????????????????????????????????? | | ???????????# #??#######???????????????????????? | | ???????????# #? #???????????????????????? | | ???????????# #? #???????????????????????? | | ???????????# # "" #???????????????????????? | | ???????????# # """#???????????????????????? | | ???????????# + T"#???????????????????????? | | ???????????# # """#???????????????????????? | +----------------------------------------------------+ Best States ------------- Heat Dissipation 46 Energy Generation 28 Energy Capacity 250 Matter Stores 269 Matter Capacity 300 Sight Range 16 Terrain Scan Density 10 Additional Mass Support 9 Armor Coverage 225 Resistance: EM 20 Propulsion Shielding 66 Evasion (%) 65 Targeting Accuracy 5 Offensive Hacking 20 Item Schematics ----------------- None Robot Schematics ------------------ None Fabricated ------------ Nothing Alien Tech Used ----------------- None Achievements -------------- None Challenges ------------ None Game ------ Seed LinkedSchematicStripper Manual? 0 Play Time 00:26:01 Cumulative 145.7 hours Start 2024.05.03 @ 18:27:32 End 2024.05.03 @ 22:37:19 Sessions 1 Manual Loads 0 Difficulty Rogue Special Mode None Game No. 294 Rogue 294 Adventurer 0 Explorer 0 Win Type - Total 0 Types 0/0/0/0/0/0/0/0/0 Lore% 37 Gallery% 57 Achievement% 39 Wizard Run 0 Options --------- Layout 0 ASCII 0 Keyboard 1 Movement Numpad Keybinds 0 Fullscreen 2 Font 18/X11 Map View 76x50 Zoom Use 0% Tactical HUD 1 Map Filters NONE Filters NONE Steam 1 RUN: 579a7317-9d7a-4a6c-a364-d6b90e98ea6d